bitfinex-derivatives/quotes_BTCF0:USTF0_20251204
["timestamp","ask_amount","ask_price","bid_price","bid_amount"]
[1764816369940,0.05511,93957.0,93956.0,0.00015967]
[1764816370147,0.05511,93957.0,93956.0,0.07299865]
[1764816370444,0.05511,93957.0,93956.0,0.00015967]
[1764816372436,0.05511,93957.0,93956.0,0.01408765]
[1764816372636,0.05511,93957.0,93956.0,0.00015967]
[1764816373058,0.05611,93957.0,93956.0,0.01452641]
[1764816373348,0.05511,93940.0,93939.0,0.02969]
[1764816373845,0.02803,93940.0,93939.0,0.05858]
[1764816374143,0.01723,93952.0,93951.0,0.05858]
[1764816374144,0.07234,93952.0,93951.0,0.05858]
[1764816374847,0.0829828,93952.0,93951.0,0.05858]
[1764816375139,0.0829828,93952.0,93944.0,0.01385698]
[1764816375346,0.05511,93945.0,93944.0,0.05858]
[1764816375647,0.05511,93945.0,93944.0,0.07290982]
[1764816375839,0.0657536,93945.0,93944.0,0.01432982]
[1764816376040,0.05511,93943.0,93942.0,0.00015967]
[1764816376440,0.05511,93943.0,93942.0,0.01445394]
[1764816376640,0.05511,93943.0,93942.0,0.04414394]
[1764816377446,0.05511,93943.0,93942.0,0.04514394]
[1764816377842,0.05511,93943.0,93942.0,0.08467794]
[1764816378249,0.05511,93943.0,93942.0,0.08967794]
[1764816379046,0.05511,93952.0,93951.0,0.05858]
[1764816379244,0.07234,93952.0,93951.0,0.02969]
[1764816379442,0.05511,93943.0,93942.0,0.08967784]
[1764816380047,0.05511,93943.0,93942.0,0.08867784]
[1764816380947,0.05511,93943.0,93942.0,0.08967784]
[1764816381144,0.05511,93943.0,93942.0,0.08467784]
[1764816381447,0.05511,93943.0,93942.0,0.01545394]
[1764816381652,0.0278738,93944.0,93926.0,0.09452142]
[1764816381653,0.01723,93944.0,93926.0,0.00026617]
[1764816381946,0.0657557,93927.0,93926.0,0.01462561]
[1764816383150,0.0657557,93927.0,93926.0,0.02262561]
[1764816383452,0.0657557,93927.0,93926.0,0.02562561]
[1764816384949,0.0657557,93927.0,93926.0,0.01762561]
[1764816385250,0.0657557,93927.0,93926.0,0.08820561]
[1764816385251,0.05511,93927.0,93926.0,0.08820561]
[1764816389452,0.05511,93927.0,93926.0,0.02962561]
[1764816390749,0.05511,93918.0,93917.0,0.00015967]
[1764816391049,0.05511,93918.0,93917.0,0.07287222]
[1764816391354,0.05511,93918.0,93917.0,0.05873967]
[1764816392257,0.05511,93918.0,93917.0,0.05973967]
[1764816393958,0.05511,93918.0,93917.0,0.07384278]
[1764816396159,0.0657567,93918.0,93917.0,0.07384278]
[1764816398456,0.02803,93918.0,93917.0,0.08448958]
[1764816398659,0.0699262,93923.0,93922.0,0.05552]
[1764816400365,0.0749262,93923.0,93922.0,0.05552]
[1764816401260,0.0759262,93923.0,93922.0,0.05552]
[1764816403171,0.06528,93923.0,93922.0,0.0661662]
[1764816403357,0.006,93923.0,93922.0,0.0661662]
[1764816403863,0.06528,93923.0,93917.0,0.01426278]
[1764816404069,0.05928,93918.0,93917.0,0.04191278]
[1764816404258,0.05928,93918.0,93917.0,0.06978278]
[1764816404469,0.02951,93918.0,93917.0,0.06978278]
[1764816404862,0.05928,93918.0,93917.0,0.06978278]
[1764816405064,0.05928,93918.0,93917.0,0.07078278]
[1764816405466,0.05928,93918.0,93917.0,0.06978278]
[1764816405673,0.06328,93918.0,93917.0,0.06978278]
[1764816405866,0.06428,93918.0,93917.0,0.06978278]
[1764816406976,0.005,93918.0,93917.0,0.06978278]
[1764816407472,0.0675251,93932.0,93931.0,0.05692]
[1764816408870,0.0735251,93932.0,93931.0,0.05692]
[1764816410759,0.006,93932.0,93931.0,0.05692]
[1764816410963,0.03318,93932.0,93931.0,0.05692]
[1764816411164,0.06188,93932.0,93931.0,0.05692]
[1764816411868,0.0725251,93932.0,93931.0,0.05692]
[1764816414180,0.0735251,93932.0,93931.0,0.05692]
[1764816414977,0.0685251,93932.0,93931.0,0.05692]
[1764816415181,0.0725251,93932.0,93931.0,0.05692]
[1764816416576,0.0735251,93932.0,93931.0,0.05692]
[1764816416881,0.0675261,93923.0,93922.0,0.05692]
[1764816418372,0.0685261,93923.0,93922.0,0.05692]
[1764816419272,0.0715261,93923.0,93922.0,0.05692]
[1764816420982,0.0705261,93923.0,93922.0,0.05692]
[1764816421181,0.0715261,93923.0,93922.0,0.05692]
[1764816421384,0.0715261,93923.0,93917.0,0.01426278]
[1764816421385,0.05688,93922.0,93917.0,0.01426278]
[1764816421575,0.0623291,93897.0,93896.0,0.13227309]
[1764816421775,0.0106474,93912.0,93884.0,0.01757]
[1764816421776,0.05168,93893.0,93892.0,0.05702575]
[1764816422075,0.05168,93893.0,93892.0,0.00010575]
[1764816422876,0.05168,93893.0,93892.0,0.02783575]
[1764816423083,0.05768,93893.0,93892.0,0.05702575]
[1764816423482,0.05168,93893.0,93892.0,0.05702575]
[1764816423782,0.05968,93893.0,93892.0,0.05702575]
[1764816424180,0.05968,93893.0,93892.0,0.01412766]
[1764816424378,0.05768,93893.0,93892.0,0.04296766]
[1764816424577,0.05968,93893.0,93892.0,0.04296766]
[1764816425570,0.05368,93893.0,93892.0,0.01412766]
[1764816425777,0.05868,93893.0,93892.0,0.01412766]
[1764816425977,0.05668,93893.0,93892.0,0.00912766]
[1764816426177,0.06064,93887.0,93883.0,0.00015976]
[1764816426593,0.0712902,93887.0,93883.0,0.00015976]
[1764816426980,0.07139595,93887.0,93883.0,0.00015976]
[1764816427687,0.07339595,93887.0,93883.0,0.00015976]
[1764816428579,0.07839595,93887.0,93883.0,0.00015976]
[1764816428780,0.07839595,93887.0,93886.0,0.01534491]
[1764816428983,0.06774575,93887.0,93886.0,0.06345628]
[1764816430093,0.06574575,93887.0,93886.0,0.06345628]
[1764816430387,0.06674575,93887.0,93886.0,0.06345628]
[1764816430890,0.06674575,93887.0,93886.0,0.07858356]
[1764816431086,0.00610575,93887.0,93886.0,0.08923386]
[1764816431390,0.03463575,93887.0,93886.0,0.07858356]
[1764816431591,0.06674575,93887.0,93886.0,0.07858356]
[1764816431991,0.06574575,93887.0,93886.0,0.07858356]
[1764816432487,0.06174575,93887.0,93886.0,0.07858356]
[1764816432688,0.06574575,93887.0,93886.0,0.04423356]
[1764816432993,0.06474575,93887.0,93886.0,0.07858356]
[1764816433290,0.06574575,93887.0,93886.0,0.07858356]
[1764816433792,0.06474575,93887.0,93886.0,0.07858356]
[1764816433994,0.00510575,93887.0,93886.0,0.07858356]
[1764816434184,0.03363575,93887.0,93886.0,0.07858356]
[1764816434992,0.06574575,93887.0,93886.0,0.07858356]
[1764816435293,0.06374575,93887.0,93886.0,0.07858356]
[1764816435494,0.06474575,93887.0,93886.0,0.07858356]
[1764816435692,0.06174575,93887.0,93886.0,0.07858356]
[1764816435887,0.06474575,93887.0,93886.0,0.07858356]
[1764816436290,0.06074575,93887.0,93886.0,0.07858356]
[1764816436495,0.06474575,93887.0,93886.0,0.07858356]
[1764816437089,0.00410575,93887.0,93886.0,0.08923386]
[1764816437891,0.06079976,93902.0,93901.0,0.06319]
[1764816439499,0.06579976,93902.0,93901.0,0.06319]
[1764816439700,0.07644826,93902.0,93901.0,0.06319]
[1764816439994,0.06579976,93902.0,93901.0,0.06319]
[1764816440992,0.06479976,93902.0,93901.0,0.06319]
[1764816441401,0.06179976,93902.0,93901.0,0.06319]
[1764816441687,0.06379976,93902.0,93901.0,0.06319]
[1764816441893,0.06279976,93902.0,93901.0,0.06319]
[1764816442098,0.06379976,93902.0,93901.0,0.06319]
[1764816442697,0.06279976,93902.0,93901.0,0.06319]
[1764816442897,0.06379976,93902.0,93901.0,0.06319]
[1764816443101,0.00315976,93902.0,93901.0,0.06319]
[1764816444609,0.0712868,93917.0,93916.0,0.06319]
[1764816444794,0.0106468,93917.0,93916.0,0.06319]
[1764816445000,0.0712863,93921.0,93920.0,0.06319]
[1764816445197,0.06064,93954.0,93953.0,0.06319]
[1764816445401,0.09571611,93973.0,93953.0,0.06319]
[1764816445402,0.06090606,93966.0,93965.0,0.06319]
[1764816445597,0.06090606,93966.0,93965.0,0.02884]
[1764816445895,0.06064,93957.0,93956.0,0.02899965]
[1764816446096,0.06064,93957.0,93956.0,0.06334965]
[1764816447809,0.06690606,93966.0,93965.0,0.06319]
[1764816448008,0.06290606,93966.0,93965.0,0.06319]
[1764816448206,0.06090606,93966.0,93965.0,0.07839796]
[1764816448411,0.06090606,93966.0,93965.0,0.01520796]
[1764816448613,0.06064,93957.0,93956.0,0.06334965]
[1764816449007,0.06264,93957.0,93956.0,0.07858192]
[1764816451004,0.06164,93957.0,93956.0,0.01539192]
[1764816451201,0.06364,93957.0,93956.0,0.01539192]
[1764816452112,0.06264,93957.0,93956.0,0.01539192]
[1764816452310,0.06564,93957.0,93956.0,0.01539192]
[1764816454207,0.06564,93957.0,93956.0,0.08088192]
[1764816454415,0.03353,93957.0,93956.0,0.08088192]
[1764816455210,0.03253,93957.0,93956.0,0.08088192]
[1764816455413,0.002,93957.0,93956.0,0.08088192]
[1764816455613,0.00026606,93966.0,93965.0,0.06549]
[1764816456004,0.06401,93961.0,93960.0,0.03463]
[1764816456209,0.06401,93961.0,93960.0,0.08362]
[1764816456403,0.00026606,93966.0,93960.0,0.08362]
[1764816456404,0.06427606,93966.0,93965.0,0.06549]
[1764816457518,0.06727606,93966.0,93965.0,0.03463]
[1764816457814,0.06727606,93966.0,93965.0,0.06549]
[1764816458213,0.06627606,93966.0,93965.0,0.06549]
[1764816458419,0.06727606,93966.0,93965.0,0.06549]
[1764816458613,0.06401,93961.0,93960.0,0.08362]
[1764816459215,0.033,93961.0,93960.0,0.08362]
[1764816459514,0.06727606,93966.0,93965.0,0.06549]
[1764816460615,0.06727606,93966.0,93965.0,0.03463]
[1764816460916,0.06627606,93966.0,93965.0,0.03463]
[1764816461719,0.06401,93961.0,93960.0,0.0942619]
[1764816462617,0.09401,93961.0,93960.0,0.0942619]
[1764816463216,0.00326606,93966.0,93965.0,0.0761314]
[1764816463418,0.03326606,93966.0,93965.0,0.0761314]
[1764816463612,0.03026606,93966.0,93965.0,0.0761314]
[1764816464211,0.01800206,93966.0,93965.0,0.0761314]
[1764816464412,2.06e-06,93966.0,93965.0,0.0761314]
[1764816464612,0.00100206,93966.0,93965.0,0.0761314]
[1764816464821,0.05,93976.0,93974.0,0.0816903]
[1764816465016,0.03015965,93975.0,93974.0,0.0816903]
[1764816465523,0.09847965,93975.0,93974.0,0.0816903]
[1764816466123,0.10047965,93975.0,93974.0,0.0816903]
[1764816466326,0.10047965,93975.0,93974.0,0.07105]
[1764816466513,0.10047965,93975.0,93970.0,0.0106408]
[1764816466514,0.02086,93968.0,93957.0,0.07105]
[1764816466821,0.06832,93958.0,93957.0,0.07105]
[1764816467022,0.09832,93958.0,93957.0,0.0816923]
[1764816467421,0.09832,93958.0,93957.0,0.07105]
[1764816467910,0.09832,93958.0,93956.0,0.01539192]
[1764816467911,0.06832,93957.0,93956.0,0.01539192]
[1764816468112,0.09832,93957.0,93956.0,0.01539192]
[1764816468312,0.06832,93934.0,93933.0,0.0816949]
[1764816468513,0.09832,93934.0,93933.0,0.0816949]
[1764816469525,0.06832,93929.0,93928.0,0.05139302]
[1764816469729,0.09832,93929.0,93928.0,0.05139302]
[1764816471020,0.09832,93929.0,93928.0,0.05239302]
[1764816472223,0.09832,93929.0,93924.0,0.00015965]
[1764816472224,0.06832,93925.0,93924.0,0.00015965]
[1764816472421,0.0789675,93911.0,93910.0,0.00012912]
[1764816472731,0.06832,93887.0,93886.0,0.00026628]
[1764816472925,0.09832,93887.0,93886.0,0.00026628]
[1764816473122,0.0633,93887.0,93886.0,0.0864113]
[1764816473522,0.06341254,93887.0,93886.0,0.0864113]
[1764816473924,0.06441254,93887.0,93886.0,0.0864113]
[1764816474330,0.03111254,93887.0,93886.0,0.0864113]
[1764816475523,0.00111254,93887.0,93886.0,0.0864113]
[1764816476829,0.00011254,93887.0,93886.0,0.0874113]
[1764816477030,0.06843254,93887.0,93886.0,0.0874113]
[1764816477336,0.07908274,93887.0,93886.0,0.0153613]
[1764816477631,0.07908274,93887.0,93886.0,0.0163613]
[1764816477835,0.07908274,93887.0,93877.0,0.00015975]
[1764816477836,0.0789712,93878.0,93877.0,0.00015975]
[1764816478930,0.0789712,93878.0,93877.0,0.01535881]
[1764816480623,0.0789712,93878.0,93850.0,0.02077]
[1764816480624,0.0106536,93858.0,93850.0,0.02077]
[1764816480828,0.02086,93880.0,93850.0,0.09182]
[1764816480829,0.06832,93851.0,93850.0,0.09182]
[1764816481232,0.06832,93851.0,93850.0,0.07105]
[1764816481732,9.713e-05,93857.0,93856.0,0.07105]
[1764816482830,0.06841713,93857.0,93856.0,0.07105]
[1764816483028,0.06832,93851.0,93850.0,0.07637189]
[1764816483242,0.06832,93851.0,93850.0,0.01947189]
[1764816484338,0.06832,93851.0,93850.0,0.03247189]
[1764816484634,0.06832,93851.0,93850.0,0.10487189]
[1764816484941,9.713e-05,93857.0,93850.0,0.10487189]
[1764816484942,0.06922713,93857.0,93856.0,0.0754]
[1764816485740,0.06913,93851.0,93850.0,0.02147189]
[1764816486339,0.06913,93851.0,93850.0,0.01547189]
[1764816486531,0.06913,93849.0,93848.0,0.00010066]
[1764816487534,0.06913,93849.0,93848.0,0.01615019]
[1764816487739,0.06913,93849.0,93848.0,0.00010066]
[1764816487938,0.06913,93849.0,93848.0,0.07250066]
[1764816488839,0.06913,93849.0,93848.0,0.01010066]
[1764816489341,0.07013,93849.0,93848.0,0.00210066]
[1764816489545,0.07013,93849.0,93848.0,0.00010066]
[1764816489729,0.07113,93849.0,93848.0,0.00010066]
[1764816489933,0.07113,93849.0,93848.0,0.0888324]
[1764816490128,0.07113,93849.0,93848.0,0.07250066]
[1764816490332,0.07113,93849.0,93848.0,0.08886122]
[1764816493744,0.002,93849.0,93848.0,0.08886122]
[1764816494641,0.03579,93849.0,93848.0,0.08886122]
[1764816494844,0.03479,93849.0,93848.0,0.08886122]
[1764816495141,0.001,93849.0,93848.0,0.08886122]
[1764816495752,0.06913,93849.0,93848.0,0.08886122]
[1764816495944,0.0797845,93849.0,93848.0,0.08886122]
[1764816496143,0.0797845,93849.0,93848.0,0.01646122]
[1764816496746,0.0797845,93849.0,93848.0,0.02046122]
[1764816497137,0.0797845,93849.0,93848.0,0.02146122]
[1764816498041,0.0807845,93849.0,93848.0,0.01646122]
[1764816498743,0.0817845,93849.0,93848.0,0.01646122]
[1764816499540,0.1093982,93849.0,93848.0,0.01646122]
[1764816499847,0.06913,93826.0,93825.0,0.0946]
[1764816500547,0.06913,93826.0,93825.0,0.11021506]
[1764816500948,0.06923604,93826.0,93825.0,0.11321506]
[1764816501656,0.06923604,93826.0,93825.0,0.12321506]
[1764816501947,0.06923604,93826.0,93825.0,0.10101506]
[1764816504542,0.00010604,93826.0,93825.0,0.12321506]
[1764816505142,0.06923604,93826.0,93825.0,0.10101506]
[1764816505345,0.06923604,93826.0,93825.0,0.06449506]
[1764816505543,0.06923604,93826.0,93825.0,0.10101506]
[1764816507852,0.09923604,93826.0,93825.0,0.02861506]
[1764816508056,0.06913,93807.0,93788.0,7.856e-05]
[1764816508255,0.12573289,93807.0,93788.0,7.856e-05]
[1764816508948,0.12573289,93807.0,93806.0,0.01660984]
[1764816509156,0.12573289,93807.0,93806.0,0.00026651]
[1764816509350,0.12573289,93807.0,93806.0,0.09074781]
[1764816509551,0.12573289,93807.0,93806.0,0.07466651]
[1764816509948,0.14700289,93807.0,93806.0,0.03614651]
[1764816510261,0.14700289,93807.0,93806.0,0.01642949]
[1764816510459,0.14700289,93807.0,93806.0,0.05230949]
[1764816510955,0.12573289,93807.0,93806.0,0.08882949]
[1764816511157,0.03,93807.0,93806.0,0.08882949]
[1764816511658,0.03,93807.0,93806.0,0.49948889]
[1764816511860,0.05742967,93854.0,93825.0,0.0946]
[1764816512060,0.02127,93861.0,93825.0,0.0946]
[1764816512061,0.03010604,93826.0,93825.0,0.0946]
[1764816512252,0.03010604,93826.0,93825.0,0.09139]
[1764816513059,0.00015983,93835.0,93834.0,0.0830562]
[1764816513256,0.03015983,93835.0,93834.0,0.0724]
[1764816513449,0.09928983,93835.0,93834.0,0.03588]
[1764816513851,0.09928983,93835.0,93834.0,0.06975]
[1764816514056,0.06407357,93835.0,93834.0,0.06975]
[1764816514459,0.03028357,93835.0,93834.0,0.06975]
[1764816514761,0.03728357,93835.0,93834.0,0.06975]
[1764816514966,0.10786357,93835.0,93834.0,0.03588]
[1764816515155,0.0812368,93829.0,93828.0,0.06873]
[1764816515463,0.10058,93829.0,93828.0,0.06873]
[1764816515661,0.03,93829.0,93828.0,0.06873]
[1764816516670,0.031,93829.0,93828.0,0.06873]
[1764816517257,0.036,93829.0,93828.0,0.06873]
[1764816518260,0.035,93829.0,93828.0,0.06873]
[1764816518463,0.031,93829.0,93828.0,0.06873]
[1764816518665,0.036,93829.0,93828.0,0.06873]
[1764816518870,0.10658,93829.0,93828.0,0.06873]
[1764816519059,0.035,93829.0,93828.0,0.06873]
[1764816519264,0.036,93829.0,93828.0,0.06873]
[1764816519967,0.11006,93829.0,93828.0,0.06873]
[1764816520359,0.07287,93829.0,93828.0,0.06873]
[1764816520670,0.037,93829.0,93828.0,0.06873]
[1764816521066,0.032,93829.0,93828.0,0.06873]
[1764816521269,0.038,93829.0,93828.0,0.06873]
[1764816521471,0.037,93829.0,93828.0,0.06873]
[1764816521768,0.036,93829.0,93828.0,0.06873]
[1764816522764,0.11081,93829.0,93828.0,0.03486]
[1764816522959,0.0482778,93820.0,93819.0,0.07012]
[1764816523166,0.0782778,93820.0,93819.0,0.07012]
[1764816523373,0.0406578,93820.0,93819.0,0.07012]
[1764816524462,0.0446578,93820.0,93819.0,0.07012]
[1764816524962,0.0406578,93820.0,93819.0,0.07012]
[1764816525158,0.0456578,93820.0,93819.0,0.07012]
[1764816525362,0.0832778,93820.0,93819.0,0.07012]
[1764816525873,0.1214678,93820.0,93819.0,0.07012]
[1764816526974,0.07481,93817.0,93816.0,0.07027983]
[1764816527163,0.10481,93817.0,93816.0,0.07027983]
[1764816527865,0.03,93817.0,93816.0,0.07027983]
[1764816528173,0.034,93817.0,93816.0,0.08439983]
[1764816528364,0.035,93817.0,93816.0,0.07027983]
[1764816528564,0.10981,93817.0,93816.0,0.07027983]
[1764816528765,0.11181,93817.0,93816.0,0.07027983]
[1764816529968,0.037,93817.0,93816.0,0.08439983]
[1764816530168,0.031,93817.0,93816.0,0.08439983]
[1764816530363,0.035,93817.0,93816.0,0.08439983]
[1764816531065,0.034,93817.0,93816.0,0.08439983]
[1764816531266,0.03,93817.0,93816.0,0.08639983]
[1764816531474,0.10481,93817.0,93816.0,0.07727983]
[1764816532669,0.10481,93817.0,93816.0,0.00715983]
[1764816533371,0.10481,93817.0,93816.0,0.00315983]
[1764816533571,0.10581,93817.0,93816.0,0.00115983]
[1764816533972,0.11181,93817.0,93816.0,0.00015983]
[1764816536269,0.11181,93817.0,93816.0,0.07027983]
[1764816537371,0.11081,93817.0,93816.0,0.07027983]
[1764816537573,0.11181,93817.0,93816.0,0.07027983]
[1764816538084,0.10581,93817.0,93816.0,0.07027983]
[1764816538279,0.11081,93817.0,93816.0,0.07027983]
[1764816538471,0.11181,93817.0,93816.0,0.07027983]
[1764816538672,0.037,93817.0,93816.0,0.07027983]
[1764816538880,0.037,93817.0,93816.0,0.10313813]
[1764816539270,0.11181,93817.0,93816.0,0.07027983]
[1764816539671,0.11181,93817.0,93816.0,0.00015983]
[1764816540273,0.11081,93817.0,93816.0,0.00015983]
[1764816540869,0.11181,93817.0,93816.0,0.00015983]
[1764816542380,0.10581,93817.0,93816.0,0.00015983]
[1764816542687,0.11181,93817.0,93816.0,0.00015983]
[1764816542888,0.11081,93817.0,93816.0,0.00015983]
[1764816543181,0.11181,93817.0,93816.0,0.00015983]
[1764816543582,0.11181,93817.0,93806.0,0.01642949]
[1764816543583,0.1007393,93807.0,93806.0,0.01642949]
[1764816543771,0.13082406,93807.0,93806.0,0.01642949]
[1764816544077,0.13082406,93807.0,93806.0,0.08758949]
[1764816544780,0.13182406,93807.0,93806.0,0.08758949]
[1764816545370,0.12116476,93807.0,93806.0,0.08758949]
[1764816545585,0.03108476,93807.0,93806.0,0.08758949]
[1764816545786,0.03508476,93807.0,93806.0,0.08758949]
[1764816546576,0.03408476,93807.0,93806.0,0.08758949]
[1764816546776,0.03008476,93807.0,93806.0,0.08858949]
[1764816546976,0.03008476,93807.0,93806.0,0.09358949]
[1764816547283,0.06931,93850.0,93842.0,0.0106553]
[1764816547486,0.09931,93850.0,93845.0,0.0106549]
[1764816547683,0.06931,93841.0,93840.0,0.0106554]
[1764816547885,0.09931,93841.0,93840.0,0.0106554]
[1764816548387,0.06931,93838.0,93837.0,0.07559115]
[1764816548684,0.06931,93837.0,93836.0,0.07559115]
[1764816548883,0.09931,93837.0,93836.0,0.07559115]
[1764816549179,0.06931,93835.0,93834.0,0.0106562]
[1764816549485,0.09931,93835.0,93834.0,0.0106562]
[1764816549781,0.03,93835.0,93834.0,0.0106562]
[1764816550183,0.034,93835.0,93834.0,0.0106562]
[1764816550984,0.035,93835.0,93834.0,0.0106562]
[1764816551884,0.031,93835.0,93834.0,0.0106562]
[1764816552085,0.031,93835.0,93834.0,0.0116562]
[1764816552587,0.031,93835.0,93834.0,0.0156562]
[1764816552786,0.06662,93835.0,93834.0,0.0176562]
[1764816552987,0.03,93835.0,93834.0,0.0176562]
[1764816555883,0.09931,93835.0,93834.0,0.0166562]
[1764816556081,0.09931,93835.0,93834.0,0.0116562]
[1764816556281,0.09931,93835.0,93834.0,0.09207803]
[1764816556484,0.09931,93835.0,93834.0,0.09107803]
[1764816556685,0.09931,93835.0,93834.0,0.09307803]
[1764816557293,0.09931,93835.0,93834.0,0.09107803]
[1764816557483,0.10031,93835.0,93834.0,0.005]
[1764816558189,0.031,93835.0,93834.0,0.005]
[1764816558387,0.031,93835.0,93834.0,0.09107803]
[1764816558889,0.035,93835.0,93834.0,0.08607803]
[1764816559088,0.034,93835.0,93834.0,0.0116562]
[1764816559486,0.03,93835.0,93834.0,0.0166562]
[1764816559687,0.03,93835.0,93834.0,0.0156562]
[1764816559990,0.03,93835.0,93834.0,0.0176562]
[1764816560287,0.02077,93840.0,93839.0,0.0106556]
[1764816560489,0.11946983,93850.0,93849.0,0.0106545]
[1764816560685,0.09946983,93850.0,93849.0,0.0106545]
[1764816561587,0.10446983,93850.0,93849.0,0.0106545]
[1764816562686,0.10346983,93850.0,93849.0,0.0106545]
[1764816562888,0.06931,93847.0,93846.0,0.05648051]
[1764816563087,0.06931,93846.0,93845.0,0.06713541]
[1764816563286,0.09931,93846.0,93845.0,0.0106549]
[1764816565499,0.09931,93846.0,93845.0,0.0116549]
[1764816566387,0.09931,93846.0,93845.0,0.0106549]
[1764816566593,0.10031,93846.0,93845.0,0.0106549]
[1764816567599,0.10431,93846.0,93845.0,0.0106549]
[1764816567990,0.10031,93846.0,93845.0,0.0106549]
[1764816568499,0.09931,93846.0,93845.0,0.0116549]
[1764816569597,0.10031,93846.0,93845.0,0.0106549]
[1764816570503,0.10431,93846.0,93845.0,0.0106549]
[1764816571002,0.10031,93846.0,93845.0,0.0106549]
[1764816571203,0.09931,93846.0,93845.0,0.0106549]
[1764816571405,0.09931,93846.0,93845.0,0.0116549]
[1764816573705,0.09931,93846.0,93845.0,0.0168549]
[1764816574498,0.10331,93846.0,93845.0,0.0168549]
[1764816575105,0.10431,93846.0,93845.0,0.0158549]
[1764816575502,0.04162,93846.0,93845.0,0.0158549]
[1764816575707,0.035,93846.0,93845.0,0.0158549]
[1764816575908,0.035,93846.0,93845.0,0.11034384]
[1764816576201,0.005,93846.0,93845.0,0.11034384]
[1764816576408,0.001,93846.0,93845.0,0.0158549]
[1764816576607,0.001,93846.0,93845.0,0.0208549]
[1764816577505,0.00015983,93850.0,93845.0,0.0208549]
[1764816577506,0.00015983,93850.0,93849.0,0.0158545]
[1764816579211,0.00015983,93850.0,93849.0,0.0188545]
[1764816579712,0.00015983,93850.0,93849.0,0.0248545]
[1764816580111,0.03621983,93850.0,93849.0,0.0188545]
[1764816580307,0.03621983,93850.0,93849.0,0.0248545]
[1764816581511,0.07109983,93850.0,93849.0,0.0248545]
[1764816584111,0.07109983,93850.0,93849.0,0.0188545]
[1764816584307,0.09171,93861.0,93860.0,0.0114333]
[1764816584513,0.12171,93861.0,93860.0,0.0114333]
[1764816585814,0.12171,93861.0,93860.0,0.0124333]
[1764816586926,0.03,93861.0,93860.0,0.05656197]
[1764816587322,0.03,93861.0,93860.0,0.05856197]
[1764816587521,0.10094,93861.0,93860.0,0.06356197]
[1764816587911,0.10094,93861.0,93860.0,0.14331807]
[1764816588115,0.10094,93861.0,93860.0,0.06456197]
[1764816588624,0.10094,93861.0,93860.0,0.14881529]
[1764816589322,0.10094,93861.0,93860.0,0.14803529]
[1764816589714,0.10094,93861.0,93860.0,0.14203529]
[1764816589922,0.10094,93861.0,93860.0,0.14881529]
[1764816590315,0.10094,93861.0,93860.0,0.15290544]
[1764816590622,0.10094,93861.0,93860.0,0.15490544]
[1764816590814,0.10094,93861.0,93860.0,0.15190544]
[1764816591015,0.10094,93861.0,93860.0,0.15790544]
[1764816591218,0.10094,93861.0,93860.0,0.15712544]
[1764816591424,0.10094,93861.0,93860.0,0.06278197]
[1764816591626,0.10094,93861.0,93860.0,0.0156533]
[1764816591921,0.10094,93861.0,93860.0,0.0176533]
[1764816593321,0.10094,93861.0,93860.0,0.0184333]
[1764816593527,0.10094,93861.0,93860.0,0.0166533]
[1764816593928,0.10494,93861.0,93860.0,0.0116533]
[1764816594223,0.10494,93861.0,93860.0,0.0106533]
[1764816594418,0.10194,93861.0,93860.0,0.0156533]
[1764816595018,0.10094,93861.0,93860.0,0.0146533]
[1764816595221,0.10094,93861.0,93860.0,0.0166533]
[1764816596425,0.10094,93861.0,93860.0,0.0170433]
[1764816596626,0.10194,93861.0,93860.0,0.0154333]
[1764816596822,0.10194,93861.0,93860.0,0.0114333]
[1764816597328,0.10094,93861.0,93860.0,0.0114333]
[1764816597530,0.10094,93861.0,93860.0,0.0124333]
[1764816598024,0.10094,93861.0,93860.0,0.0174333]
[1764816598223,0.07094,93861.0,93860.0,0.0176533]
[1764816598414,0.09094,93861.0,93860.0,0.0176533]
[1764816599426,0.09094,93861.0,93860.0,0.0126533]
[1764816599628,0.09094,93861.0,93860.0,0.0156533]
[1764816599826,0.09094,93861.0,93860.0,0.0176533]
[1764816600025,0.09094,93861.0,93860.0,0.0126533]
[1764816600320,0.09494,93861.0,93860.0,0.10577677]
[1764816600518,0.07594,93861.0,93860.0,0.0110433]
[1764816600719,0.07594,93861.0,93860.0,0.10506721]
[1764816601226,0.07094,93854.0,93853.0,0.09441391]
[1764816601426,0.07094,93854.0,93851.0,0.01081413]
[1764816601427,0.07094,93852.0,93851.0,0.10522804]
[1764816601742,0.07094,93845.0,93844.0,0.03988374]
[1764816601922,0.03,93845.0,93844.0,0.07135]
[1764816602234,0.10094,93845.0,93844.0,0.07135]
[1764816603318,0.10094,93845.0,93844.0,0.0363]
[1764816603727,0.10094,93845.0,93844.0,0.0373]
[1764816604328,0.10094,93845.0,93844.0,0.001]
[1764816605831,0.10094,93845.0,93844.0,0.003]
[1764816606532,0.10094,93845.0,93844.0,0.002]
[1764816606734,0.10094,93845.0,93844.0,0.003]
[1764816606923,0.10094,93845.0,93844.0,0.07096]
[1764816607124,0.10294,93845.0,93844.0,0.07096]
[1764816607329,0.10294,93845.0,93844.0,0.06996]
[1764816608140,0.10294,93845.0,93844.0,0.0806151]
[1764816608535,0.08294,93845.0,93844.0,0.0806151]
[1764816608749,0.04606,93845.0,93844.0,0.0806151]
[1764816608933,0.04606,93845.0,93844.0,0.0836151]
[1764816609644,0.04606,93845.0,93844.0,0.0876151]
[1764816609835,0.04606,93845.0,93844.0,0.0896151]
[1764816610031,0.03606,93845.0,93844.0,0.0906151]
[1764816610231,0.03706,93845.0,93844.0,0.0906151]
[1764816610440,0.07344,93845.0,93844.0,0.0886151]
[1764816610632,0.07344,93845.0,93844.0,0.0916151]
[1764816611141,0.001,93845.0,93844.0,0.0916151]
[1764816611739,0.09043,93856.0,93855.0,0.0806138]
[1764816612043,0.12043,93856.0,93855.0,0.0806138]
[1764816612540,0.10018,93856.0,93855.0,0.0806138]
[1764816612940,0.10018,93856.0,93855.0,0.0886138]
[1764816613246,0.07018,93856.0,93855.0,0.0886138]
[1764816613745,0.07018,93856.0,93855.0,0.0896138]
[1764816614135,0.09065,93856.0,93855.0,0.0896138]
[1764816614538,0.12065,93856.0,93855.0,0.0196538]
[1764816614843,0.09065,93856.0,93855.0,0.11621963]
[1764816615233,0.09065,93856.0,93855.0,0.11521963]
[1764816615438,0.09065,93856.0,93855.0,0.18417963]